bitfinex-derivatives/quotes_BTCF0:USTF0_20210108
["timestamp","ask_amount","ask_price","bid_price","bid_amount"]
[1610078056800,0.13632608,38342.0,38336.0,0.03077774]
[1610078057001,0.13632608,38342.0,38334.0,0.10078]
[1610078057002,0.13632608,38342.0,38341.0,0.03077866]
[1610078057402,0.13632608,38342.0,38335.0,0.03077815]
[1610078057602,0.13632608,38342.0,38334.0,0.10078]
[1610078057603,0.13632608,38342.0,38341.0,0.03077843]
[1610078057802,0.13632608,38342.0,38336.0,0.03077802]
[1610078058202,0.13632608,38342.0,38335.0,0.030778]
[1610078058403,0.13632608,38342.0,38337.0,0.03077793]
[1610078058602,0.13632608,38342.0,38336.0,0.03077824]
[1610078059004,0.13632608,38342.0,38338.0,0.03077795]
[1610078059205,0.13632608,38342.0,38337.0,0.03077766]
[1610078059404,0.13632608,38342.0,38339.0,0.03077762]
[1610078059805,0.13632608,38342.0,38338.0,0.03077739]
[1610078060005,0.13632608,38342.0,38340.0,0.03077584]
[1610078060204,0.13632608,38342.0,38339.0,0.03077607]
[1610078060404,0.13632608,38342.0,38341.0,0.03077615]
[1610078060705,0.13632608,38342.0,38335.0,0.03077604]
[1610078061105,0.13632608,38342.0,38341.0,0.03077585]
[1610078061306,0.13632608,38342.0,38334.0,0.10078]
[1610078061307,0.13632608,38342.0,38336.0,0.03077641]
[1610078061507,0.13632608,38342.0,38341.0,0.03077684]
[1610078061708,0.13632608,38342.0,38341.0,0.03049079]
[1610078061905,0.13632608,38342.0,38337.0,0.03077686]
[1610078062106,0.13632608,38342.0,38341.0,0.03077691]
[1610078062308,0.13632608,38342.0,38338.0,0.03077767]
[1610078062506,0.13632608,38342.0,38341.0,0.03077779]
[1610078062906,0.13632608,38342.0,38335.0,0.03077799]
[1610078063107,0.13632608,38342.0,38341.0,0.03077835]
[1610078063309,0.13632608,38342.0,38336.0,0.03078048]
[1610078063709,3.0454,38338.0,38335.0,0.03078153]
[1610078063909,0.13632608,38336.0,38315.0,0.13632608]
[1610078064310,0.13632608,38336.0,38310.0,0.14643862]
[1610078064511,3.9523,38322.0,38316.0,0.03078322]
[1610078064711,3.9523,38322.0,38301.0,0.17725912]
[1610078064913,3.9523,38322.0,38317.0,0.0307915]
[1610078065114,3.9523,38322.0,38317.0,0.1201815]
[1610078065313,3.9523,38322.0,38317.0,0.08939]
[1610078065513,3.9523,38322.0,38318.0,0.03079457]
[1610078065913,0.13632608,38319.0,38318.0,0.03079457]
[1610078068916,0.13632608,38319.0,38317.0,0.08939]
[1610078069115,0.13632608,38319.0,38318.0,0.03079327]
[1610078076124,3.24512608,38319.0,38318.0,0.03079327]
[1610078077125,3.24512608,38319.0,38312.0,0.10743]
[1610078077326,0.13342608,38319.0,38312.0,0.10743]
[1610078077527,0.13342608,38319.0,38313.0,0.03073781]
[1610078077726,3.3062,38314.0,38313.0,0.03073781]
[1610078077929,3.44252608,38314.0,38313.0,0.03073781]
[1610078083335,0.13632608,38314.0,38286.0,0.03074122]
[1610078083535,0.13632608,38314.0,38313.0,0.03074101]
[1610078083935,0.13632608,38314.0,38299.0,0.10048]
[1610078084135,0.13632608,38314.0,38313.0,0.03074059]
[1610078084335,0.13632608,38314.0,38300.0,0.03074122]
[1610078084736,0.13632608,38314.0,38313.0,0.0307421]
[1610078084938,0.13632608,38314.0,38301.0,0.03074114]
[1610078085136,0.13632608,38314.0,38313.0,0.03074046]
[1610078085538,0.13632608,38314.0,38302.0,0.03074054]
[1610078085738,0.13632608,38314.0,38313.0,0.03074038]
[1610078085938,4.36612608,38314.0,38303.0,0.0307405]
[1610078086137,0.13632608,38314.0,38313.0,0.03074125]
[1610078086638,0.13632608,38314.0,38300.0,0.03074113]
[1610078086839,0.13632608,38314.0,38299.0,0.10048]
[1610078086840,0.13632608,38314.0,38313.0,0.03074242]
[1610078087039,0.13632608,38314.0,38301.0,0.03074247]
[1610078087240,0.13632608,38314.0,38299.0,0.10048]
[1610078087440,3.9447,38304.0,38299.0,0.10048]
[1610078087840,3.9447,38304.0,38300.0,0.030747]
[1610078088044,0.13632608,38301.0,38300.0,0.030747]
[1610078089643,0.13632608,38301.0,38277.0,0.14640285]
[1610078089644,0.13632608,38301.0,38277.0,0.17715204]
[1610078089843,0.13632608,38301.0,38300.0,0.03074969]
[1610078090242,0.13632608,38301.0,38289.0,0.11932]
[1610078090243,4.34492608,38301.0,38289.0,0.11932]
[1610078090443,4.34492608,38301.0,38300.0,0.03074893]
[1610078090645,4.34492608,38301.0,38290.0,0.03074883]
[1610078090842,4.34492608,38301.0,38300.0,0.03074855]
[1610078091242,4.34492608,38301.0,38290.0,0.03074842]
[1610078091443,4.34492608,38301.0,38300.0,0.03074819]
[1610078091643,4.34492608,38301.0,38291.0,0.03074813]
[1610078092044,0.13632608,38292.0,38290.0,0.03074808]
[1610078092244,0.13632608,38292.0,38289.0,0.11932]
[1610078092444,0.13632608,38292.0,38291.0,0.03074764]
[1610078092844,0.13632608,38292.0,38290.0,0.03074757]
[1610078093046,0.13632608,38292.0,38291.0,0.03074729]
[1610078093546,0.13632608,38292.0,38290.0,0.03074716]
[1610078093748,0.13632608,38292.0,38291.0,0.03074706]
[1610078094346,0.1569,38319.0,38291.0,3.1923]
[1610078094547,0.1569,38319.0,38291.0,3.22304233]
[1610078094947,0.1569,38319.0,38292.0,0.17712382]
[1610078095949,0.1569,38319.0,38306.0,0.13632608]
[1610078096150,0.1569,38319.0,38306.0,0.27022608]
[1610078096550,0.1569,38319.0,38307.0,0.03073733]
[1610078096950,4.2884,38312.0,38307.0,0.03073733]
[1610078097349,4.2884,38312.0,38306.0,0.1339]
[1610078097350,4.2884,38312.0,38289.0,0.11932]
[1610078097550,4.2884,38312.0,38282.0,0.14639317]
[1610078097749,4.2884,38312.0,38290.0,0.03074583]
[1610078097949,0.13632608,38291.0,38283.0,0.13632608]
[1610078098351,0.13632608,38291.0,38284.0,0.03074725]
[1610078098749,0.13632608,38291.0,38284.0,0.12757725]
[1610078099249,0.13632608,38291.0,38285.0,0.03074731]
[1610078099951,0.13632608,38286.0,38285.0,0.03074731]
[1610078101456,4.1452,38302.0,38285.0,0.03074731]
[1610078102056,4.1452,38302.0,38291.0,0.13632608]
[1610078102256,0.1569,38319.0,38291.0,0.13632608]
[1610078102457,3.3186,38315.0,38292.0,0.03074428]
[1610078103258,0.06,38312.0,38292.0,0.03074428]
[1610078104063,0.13632608,38293.0,38292.0,0.03074428]
[1610078105466,0.13632608,38293.0,38285.0,0.03225518]
[1610078105664,0.13632608,38293.0,38292.0,0.03225511]
[1610078105864,0.13632608,38293.0,38292.0,0.10779]
[1610078106067,0.13632608,38293.0,38292.0,0.14004614]
[1610078112574,0.13632608,38293.0,38284.0,0.09683]
[1610078112774,0.13632608,38293.0,38270.0,0.15032047]
[1610078112974,0.13632608,38293.0,38285.0,0.03226337]
[1610078113173,0.13632608,38293.0,38275.0,0.13375]
[1610078113575,0.13632608,38293.0,38286.0,0.03226329]
[1610078113773,0.13632608,38293.0,38276.0,0.03226361]
[1610078113973,3.0084,38295.0,38287.0,0.0322633]
[1610078114274,3.0084,38295.0,38277.0,0.0322633]
[1610078114473,3.0084,38295.0,38288.0,0.03226307]
[1610078114874,3.0084,38295.0,38278.0,0.03226284]
[1610078115074,3.0084,38295.0,38289.0,0.03226281]
[1610078115275,3.0084,38295.0,38279.0,0.03226237]
[1610078115674,3.0084,38295.0,38275.0,0.13375]
[1610078115675,3.0084,38295.0,38290.0,0.03226277]
[1610078115875,3.0084,38295.0,38280.0,0.03226254]
[1610078116176,0.13632608,38281.0,38275.0,0.13375]
[1610078116575,0.13632608,38281.0,38276.0,0.03226439]
[1610078117275,3.2404,38277.0,38276.0,0.03226439]
[1610078118077,3.37672608,38277.0,38276.0,0.03226439]
[1610078118477,3.48035608,38277.0,38276.0,0.03226439]
[1610078118681,3.48035608,38277.0,38240.0,0.18272163]
[1610078119081,3.48035608,38277.0,38276.0,0.03228393]
[1610078119282,3.48035608,38277.0,38241.0,0.03228245]
[1610078119480,3.48035608,38277.0,38276.0,0.03228433]
[1610078119881,3.48035608,38277.0,38249.0,0.08945]
[1610078120082,3.34403,38277.0,38276.0,0.03228269]
[1610078120279,3.34403,38277.0,38249.0,0.08945]
[1610078120280,3.34403,38277.0,38250.0,0.03228347]
[1610078120681,3.34403,38277.0,38276.0,0.03228345]
[1610078120881,3.34403,38277.0,38251.0,2.99438353]
[1610078121082,3.34403,38277.0,38251.0,2.9621]
[1610078121284,3.34403,38277.0,38252.0,0.12243264]
[1610078122081,0.13632608,38253.0,38252.0,0.12243264]
[1610078122681,0.13632608,38253.0,38250.0,0.03228292]
[1610078122882,0.13632608,38253.0,38252.0,0.03228368]
[1610078123281,0.63102608,38253.0,38251.0,0.03228437]
[1610078123483,0.13632608,38253.0,38252.0,0.03228455]
[1610078124082,0.13632608,38253.0,38250.0,0.03228476]
[1610078124282,0.13632608,38253.0,38252.0,0.03228634]
[1610078124480,0.13632608,38253.0,38251.0,0.03228693]
[1610078124682,0.13632608,38253.0,38252.0,0.03199818]
[1610078124882,0.13632608,38253.0,38252.0,0.03228761]
[1610078125084,0.13632608,38253.0,38250.0,0.03228801]
[1610078125283,0.13632608,38253.0,38252.0,0.03228758]
[1610078125482,0.13632608,38253.0,38251.0,0.03228738]
[1610078125884,0.13632608,38253.0,38242.0,0.0322621]
[1610078126082,3.1156,38256.0,38252.0,0.0322128]
[1610078126284,3.1156,38256.0,38241.0,0.10533]
[1610078126285,3.1156,38256.0,38243.0,0.03221378]
[1610078126684,3.1156,38256.0,38253.0,0.03221414]
[1610078126884,3.1156,38256.0,38241.0,0.10533]
[1610078126885,3.1156,38256.0,38244.0,0.03221414]
[1610078127084,3.1156,38256.0,38254.0,0.0322145]
[1610078127384,3.1156,38256.0,38245.0,0.03221437]
[1610078127584,3.1156,38256.0,38255.0,0.03221429]
[1610078127885,3.1156,38256.0,38246.0,0.03221345]
[1610078128086,0.13632608,38247.0,38241.0,0.10533]
[1610078128284,0.6029,38244.0,38241.0,0.10533]
[1610078128485,0.6029,38244.0,38242.0,0.06442577]
[1610078128686,0.6029,38244.0,38242.0,0.03221274]
[1610078129090,0.6029,38244.0,38243.0,0.03221329]
[1610078129486,0.6029,38244.0,38242.0,0.03221389]
[1610078129687,0.6029,38244.0,38243.0,0.03192429]
[1610078129887,0.6029,38244.0,38243.0,0.03221358]
[1610078130088,0.6029,38244.0,38242.0,0.0322136]
[1610078130287,0.6029,38244.0,38243.0,0.03221348]
[1610078130890,0.6029,38244.0,38242.0,0.03221378]
[1610078131090,0.6029,38244.0,38243.0,0.03221392]
[1610078131491,0.6029,38244.0,38243.0,0.00028929]
[1610078131691,0.6029,38244.0,38242.0,0.03221403]
[1610078131891,0.6029,38244.0,38243.0,0.00028931]
[1610078132391,0.6029,38244.0,38242.0,0.03221403]
[1610078132591,0.6029,38244.0,38243.0,0.00028931]
[1610078133193,0.6029,38244.0,38241.0,0.10533]
[1610078133392,0.6029,38244.0,38243.0,0.03221274]
[1610078133793,0.6029,38244.0,38242.0,0.03221175]
[1610078133993,0.6029,38244.0,38243.0,0.03221206]
[1610078134394,0.6029,38244.0,38241.0,0.0954]
[1610078134794,0.6029,38244.0,38242.0,0.03221188]
[1610078136195,0.13632608,38243.0,38242.0,0.03221188]
[1610078148107,0.13632608,38243.0,38242.0,0.16853796]
[1610078148306,3.1665,38267.0,38242.0,0.16853796]
[1610078148507,0.47156875,38294.0,38242.0,0.16853796]
[1610078148708,0.293,38284.0,38250.0,3.6089]
[1610078148910,0.293,38284.0,38250.0,3.72782]
[1610078149107,3.3922,38300.0,38251.0,0.18246139]
[1610078149308,0.2858,38299.0,38251.0,0.18246139]
[1610078149508,0.1569,38298.0,38251.0,0.18246139]
[1610078150109,0.1569,38298.0,38271.0,0.13632608]
[1610078150509,0.1569,38298.0,38272.0,0.03219635]
[1610078152209,0.1569,38298.0,38275.0,0.13632608]
[1610078152413,0.1569,38298.0,38277.0,0.4687]
[1610078152816,0.1569,38298.0,38278.0,0.03219396]
[1610078153015,0.1569,38298.0,38280.0,3.4251]
[1610078153217,0.1569,38298.0,38280.0,0.11297]
[1610078153416,0.2858,38299.0,38280.0,0.11297]
[1610078153617,0.06,38300.0,38283.0,4.3702]
[1610078154217,0.06,38300.0,38288.0,0.13632608]
[1610078154617,0.06,38300.0,38289.0,0.03219178]
[1610078156119,0.13632608,38290.0,38289.0,0.03219178]
[1610078172342,0.13632608,38290.0,38289.0,0.16851786]
[1610078172545,0.13632608,38290.0,38289.0,0.69291786]
[1610078172944,0.13632608,38290.0,38289.0,0.74888717]
[1610078173447,0.06,38300.0,38289.0,0.74888717]
[1610078173647,0.06,38300.0,38289.0,0.22448717]
[1610078173846,0.06,38300.0,38299.0,3.34209]
[1610078174246,0.06,38300.0,38299.0,3.59248716]
[1610078174644,0.06,38300.0,38299.0,3.64844255]
[1610078179655,0.1569,38319.0,38299.0,3.64844255]
[1610078179853,0.1569,38333.0,38299.0,3.64844255]
[1610078180053,0.1569,38333.0,38300.0,0.1697164]
[1610078180255,0.1569,38333.0,38300.0,0.16999862]
[1610078180454,0.1569,38333.0,38330.0,0.13632608]
[1610078180655,0.11602,38334.0,38330.0,0.13632608]
[1610078180855,0.11602,38334.0,38331.0,0.0287958]
[1610078181655,0.11602,38334.0,38324.0,0.16999331]
[1610078181856,0.11602,38334.0,38332.0,0.02879571]
[1610078182157,0.11602,38334.0,38325.0,0.02879546]
[1610078182357,0.13632608,38327.0,38326.0,0.13632608]
[1610078182757,0.13632608,38327.0,38326.0,0.16512152]
[1610078183357,0.2732,38336.0,38326.0,0.16512152]
[1610078183561,0.4764,38346.0,38326.0,0.16512152]
[1610078183759,0.4764,38346.0,38327.0,0.02879393]
[1610078186364,0.4764,38346.0,38337.0,0.13632608]
[1610078186966,0.4764,38346.0,38338.0,0.02879261]
[1610078187368,0.4764,38346.0,38337.0,0.13632608]
[1610078187668,0.4764,38346.0,38339.0,0.02879139]
[1610078187868,0.4764,38346.0,38338.0,0.0287911]
[1610078188268,0.4764,38346.0,38340.0,0.02879127]
[1610078188469,0.4764,38346.0,38342.0,0.13632608]
[1610078188670,0.4764,38346.0,38342.0,0.61042608]
[1610078189070,0.3195,38346.0,38343.0,0.02879201]
[1610078189269,0.13428,38353.0,38343.0,0.08472812]
[1610078189470,0.1569,38362.0,38346.0,3.4139]
[1610078189870,0.1569,38362.0,38346.0,3.51043]
[1610078190070,0.1569,38362.0,38347.0,0.16994695]
[1610078190470,0.1569,38362.0,38352.0,0.13632608]
[1610078190871,0.3195,38372.0,38353.0,0.02878548]
[1610078192370,0.13632608,38354.0,38353.0,0.02878548]
[1610078192971,0.13632608,38354.0,38347.0,0.02878172]
[1610078193171,0.13632608,38354.0,38353.0,0.02878291]
[1610078193372,0.13632608,38354.0,38348.0,0.02878384]
[1610078193771,0.13632608,38354.0,38353.0,0.02878522]
[1610078193976,0.13632608,38354.0,38349.0,0.02878446]
[1610078194175,0.13632608,38354.0,38353.0,0.02878532]
[1610078194576,0.13632608,38354.0,38350.0,0.02878501]
[1610078194776,0.13632608,38354.0,38353.0,0.02878435]
[1610078194976,0.13632608,38354.0,38351.0,0.02878388]
[1610078195275,0.13632608,38354.0,38353.0,0.02878344]
[1610078195475,0.13632608,38354.0,38352.0,0.02878275]
[1610078195875,0.13632608,38354.0,38353.0,0.02878291]
[1610078196276,0.13632608,38354.0,38347.0,0.02878204]
[1610078196477,0.13632608,38354.0,38351.0,0.13632608]
[1610078196675,0.13632608,38354.0,38353.0,0.02878158]
[1610078196875,0.13632608,38354.0,38352.0,0.02878153]
[1610078197077,0.13632608,38354.0,38353.0,0.02878098]
[1610078197577,0.13632608,38354.0,38352.0,0.028781]
[1610078197877,0.13632608,38354.0,38353.0,0.028781]
[1610078198377,0.13632608,38354.0,38352.0,0.02878087]
[1610078198778,0.13632608,38354.0,38353.0,0.02878104]
[1610078199179,0.13632608,38354.0,38352.0,0.028782]
[1610078199579,0.13632608,38354.0,38353.0,0.0287821]
[1610078200080,0.13632608,38354.0,38347.0,0.02878161]
[1610078200280,0.13632608,38354.0,38353.0,0.02878052]
[1610078200480,0.13632608,38354.0,38348.0,0.1651054]
[1610078200880,0.13632608,38354.0,38353.0,0.0287794]
[1610078201081,0.13632608,38354.0,38349.0,0.02877952]
[1610078201280,0.13632608,38354.0,38348.0,0.13632608]
[1610078201281,0.13632608,38354.0,38353.0,0.02877939]
[1610078201483,0.13632608,38354.0,38350.0,0.02878035]
[1610078201781,0.13632608,38354.0,38353.0,0.02877915]
[1610078202183,0.13632608,38354.0,38351.0,0.02877915]
[1610078202384,0.13632608,38354.0,38353.0,0.02877915]
[1610078202582,0.13632608,38354.0,38352.0,0.02877952]
[1610078202782,0.2649796,38354.0,38353.0,0.00028206]
[1610078202983,0.2649796,38354.0,38353.0,0.02878111]
[1610078203182,0.2649796,38354.0,38347.0,0.02878239]
[1610078203383,0.2649796,38354.0,38353.0,0.02878365]
[1610078203583,0.2649796,38354.0,38348.0,0.02878436]
[1610078203985,0.2649796,38354.0,38335.0,0.02878456]
[1610078204183,0.2649796,38354.0,38349.0,0.02878401]
[1610078204384,0.13632608,38350.0,38337.0,0.13632608]
[1610078204785,0.13632608,38350.0,38338.0,0.02878543]
[1610078205586,0.13632608,38350.0,38335.0,0.02878742]
[1610078205784,0.13632608,38350.0,38339.0,0.0287883]
[1610078205984,0.13632608,38350.0,38336.0,0.02878909]
[1610078206386,0.11222,38350.0,38340.0,0.02879005]
[1610078206587,0.11222,38350.0,38337.0,0.02878995]
[1610078206784,0.11222,38350.0,38341.0,0.02879013]
[1610078206984,0.11222,38350.0,38341.0,0.02850799]
[1610078207185,0.11222,38350.0,38338.0,0.02879054]
[1610078207385,0.11222,38350.0,38342.0,0.02879054]
[1610078207585,0.11222,38350.0,38339.0,0.02879064]
[1610078207785,2.9321,38345.0,38343.0,0.02879115]
[1610078208185,2.9321,38345.0,38335.0,0.02879194]
[1610078208386,2.9321,38345.0,38344.0,0.02879182]
[1610078208587,2.9321,38345.0,38336.0,0.02879229]
[1610078208990,2.9321,38345.0,38344.0,0.02879346]
[1610078209192,2.9321,38345.0,38337.0,0.02879461]
[1610078209389,2.9321,38345.0,38344.0,0.02879484]
[1610078209690,2.9321,38345.0,38338.0,0.02879505]
[1610078209891,2.9321,38345.0,38344.0,0.02879419]
[1610078210290,2.9321,38345.0,38327.0,0.02879407]
[1610078210492,2.9321,38345.0,38344.0,0.02879463]
[1610078210690,2.9321,38345.0,38328.0,0.02879509]
[1610078211092,2.9321,38345.0,38344.0,0.028796]
[1610078211293,2.9321,38345.0,38329.0,0.02879611]
[1610078211491,2.9321,38345.0,38344.0,0.02879544]
[1610078211793,2.9321,38345.0,38330.0,0.02879594]
[1610078211993,2.9321,38345.0,38344.0,0.02879602]
[1610078212292,2.9321,38345.0,38331.0,0.02879616]
[1610078212492,0.13632608,38332.0,38326.0,0.11198]
[1610078212693,0.13632608,38332.0,38318.0,0.14117786]
[1610078212893,0.13632608,38332.0,38327.0,0.02879587]
[1610078213092,0.13632608,38332.0,38314.0,0.02879545]
[1610078213292,0.13632608,38332.0,38328.0,0.02879545]
[1610078213692,0.13632608,38332.0,38314.0,0.02879531]
[1610078213893,0.0792,38331.0,38329.0,0.02879513]
[1610078214092,0.0792,38331.0,38322.0,0.13655]
[1610078214493,0.0792,38331.0,38330.0,0.02879655]
[1610078214693,0.0792,38331.0,38323.0,0.02879682]
[1610078214893,0.0792,38331.0,38330.0,0.02879706]
[1610078215296,0.0792,38331.0,38324.0,0.02879762]
[1610078215495,0.0792,38331.0,38330.0,0.02879848]
[1610078215695,0.0792,38331.0,38325.0,0.02879946]
[1610078215897,0.0792,38331.0,38330.0,0.02880029]
[1610078216197,0.0792,38331.0,38314.0,0.02880093]
[1610078216596,0.13632608,38315.0,38304.0,0.27752134]
[1610078216799,0.0773,38314.0,38304.0,0.27752134]
[1610078216996,0.0773,38314.0,38305.0,0.02880181]
[1610078217596,0.0773,38314.0,38305.0,0.10296]
[1610078217797,0.0773,38314.0,38306.0,0.02880205]
[1610078217997,0.13632608,38315.0,38306.0,0.02880205]
[1610078218598,0.13632608,38307.0,38306.0,0.02880205]
[1610078219701,0.21372608,38307.0,38306.0,0.02880205]
[1610078219901,4.46312608,38307.0,38306.0,0.02880205]
[1610078220102,4.38572608,38307.0,38306.0,0.02880205]
[1610078221502,4.38572608,38307.0,38305.0,0.10296]
[1610078221702,4.38572608,38307.0,38306.0,0.02880534]
[1610078222104,4.38572608,38307.0,38306.0,0.05761082]
[1610078222303,4.46382608,38307.0,38306.0,0.05761082]
[1610078222904,0.21442608,38307.0,38306.0,0.05761082]
[1610078223308,0.0781,38307.0,38306.0,0.05761082]
[1610078223505,0.0782,38318.0,38306.0,0.05761082]
[1610078223705,4.0737,38320.0,38306.0,0.05761082]
[1610078223906,0.2829,38342.0,38307.0,0.03218626]
[1610078224105,3.9824,38336.0,38307.0,0.03218626]
[1610078224505,3.9824,38336.0,38312.0,0.13632608]
[1610078224905,3.9824,38336.0,38313.0,0.03218288]
[1610078225306,3.9824,38336.0,38313.0,0.15628288]
[1610078225804,3.9824,38336.0,38314.0,0.03217912]
[1610078226607,0.13632608,38332.0,38326.0,0.26488608]
[1610078227007,0.13632608,38332.0,38326.0,0.29706166]
[1610078227208,0.2359,38327.0,38326.0,0.29706166]
[1610078227408,0.079,38327.0,38326.0,0.16073558]
[1610078228612,0.21532608,38327.0,38326.0,0.16073558]
[1610078228812,0.13632608,38327.0,38326.0,0.16073558]
[1610078230015,0.21522608,38327.0,38326.0,0.16073558]
[1610078230215,0.13632608,38327.0,38326.0,0.16073558]
[1610078233820,0.66132608,38327.0,38326.0,0.03217558]
[1610078234422,0.66132608,38327.0,38314.0,0.18216418]
[1610078234623,0.13632608,38315.0,38314.0,0.14998737]
[1610078235224,0.13632608,38315.0,38314.0,0.03218056]
[1610078238425,0.13632608,38315.0,38314.0,3.68238056]
[1610078238624,0.13632608,38315.0,38314.0,3.81870664]
[1610078238826,0.12773,38331.0,38314.0,3.9687238]
[1610078239227,0.0862,38339.0,38314.0,3.9687238]
[1610078239425,0.3195,38345.0,38315.0,0.18218686]
[1610078239626,0.3195,38345.0,38315.0,0.15000831]
[1610078239826,0.3195,38345.0,38316.0,0.03217853]
[1610078240426,0.3195,38345.0,38317.0,0.03217859]
[1610078240628,0.3195,38345.0,38328.0,0.13632608]
[1610078241127,0.3195,38345.0,38329.0,0.03217833]
[1610078242731,0.13632608,38330.0,38329.0,0.03217833]
[1610078244233,0.21562608,38330.0,38329.0,0.00028875]
[1610078244433,0.21562608,38330.0,38325.0,0.03217743]
[1610078244632,0.0793,38330.0,38329.0,0.03217774]
[1610078244832,0.2813,38341.0,38326.0,0.0321778]
[1610078245033,0.2813,38341.0,38329.0,0.03217811]
[1610078245431,0.2813,38341.0,38327.0,0.03217814]
[1610078245630,0.2813,38341.0,38330.0,0.03217811]
[1610078245830,0.2813,38341.0,38328.0,0.03217799]
[1610078246234,0.2813,38341.0,38331.0,0.03217811]
[1610078246430,0.2813,38341.0,38329.0,0.03217836]
[1610078246630,0.13632608,38330.0,38324.0,0.10619]
[1610078247232,0.13632608,38330.0,38325.0,0.03217721]
[1610078247433,0.0774,38329.0,38325.0,0.03217721]
[1610078248233,0.13632608,38330.0,38329.0,0.0774]
[1610078248432,0.13632608,38330.0,38325.0,0.03217721]
[1610078248633,3.5479,38335.0,38325.0,0.03217721]
[1610078248634,0.13632608,38326.0,38325.0,0.03217721]
[1610078248834,0.13632608,38326.0,38314.0,0.03218059]
[1610078249034,0.13632608,38326.0,38325.0,0.03218111]
[1610078249235,0.21412608,38326.0,38315.0,0.03218101]
[1610078249633,0.21412608,38326.0,38325.0,0.03218164]
[1610078249833,0.21412608,38326.0,38313.0,0.27411798]
[1610078249834,0.21412608,38326.0,38316.0,0.03218242]
[1610078250034,0.21412608,38326.0,38325.0,0.03218275]
[1610078250436,3.62102608,38326.0,38317.0,0.03218337]
[1610078250635,3.62102608,38326.0,38313.0,0.1241]
[1610078250636,3.4847,38326.0,38325.0,0.03218405]
[1610078250835,3.4847,38326.0,38318.0,0.03218452]
[1610078251035,3.4847,38326.0,38325.0,0.03218555]
[1610078251435,3.4069,38326.0,38314.0,0.03218569]
[1610078251635,3.4069,38326.0,38300.0,0.15003442]
[1610078251837,3.4069,38326.0,38315.0,0.0321862]
[1610078252237,3.4069,38326.0,38300.0,0.18222085]
[1610078252437,3.4069,38326.0,38316.0,0.03218616]
[1610078252639,0.13632608,38317.0,38301.0,0.03218662]
[1610078252838,0.13632608,38317.0,38302.0,0.11619]
[1610078253238,0.13632608,38317.0,38303.0,0.03218677]
[1610078253739,0.4748,38316.0,38303.0,0.03218677]
[1610078253940,0.552,38316.0,38303.0,0.03218677]
[1610078254341,0.4748,38316.0,38303.0,0.03218677]
[1610078254740,0.13632608,38304.0,38303.0,0.03218677]
[1610078257945,0.13632608,38304.0,38302.0,0.11619]
[1610078258147,0.13632608,38304.0,38303.0,0.03218724]
[1610078258746,0.13632608,38304.0,38297.0,0.09753]
[1610078258946,0.13632608,38304.0,38303.0,0.032187]
[1610078259146,0.13632608,38304.0,38298.0,0.03218705]
[1610078260749,0.13632608,38299.0,38298.0,0.03218705]
[1610078262350,0.13632608,38299.0,38298.0,4.12698705]
[1610078262952,0.13632608,38299.0,38298.0,4.27704155]
[1610078263551,0.13632608,38299.0,38298.0,0.18224155]
[1610078263952,0.13632608,38299.0,38298.0,0.03218705]
[1610078270560,0.13632608,38299.0,38298.0,0.58428705]
[1610078270960,0.13632608,38299.0,38298.0,0.64442311]
[1610078271162,0.13632608,38299.0,38298.0,0.09232311]
[1610078271561,0.13632608,38299.0,38298.0,0.03218705]
[1610078280079,0.13632608,38299.0,38297.0,0.27977897]
[1610078280478,0.13632608,38299.0,38298.0,0.03218924]
[1610078280878,0.86450755,38324.0,38298.0,0.03218924]
[1610078281078,0.86450755,38324.0,38308.0,3.8216]
[1610078281079,0.37242,38324.0,38308.0,3.8216]
[1610078281480,0.37242,38324.0,38309.0,0.1822326]
[1610078282880,0.13632608,38310.0,38309.0,0.31855868]
[1610078285082,0.2828,38324.0,38309.0,0.31855868]
[1610078285282,0.1569,38325.0,38324.0,4.0647]
[1610078285684,0.1569,38325.0,38324.0,0.17808274]
[1610078286084,0.1569,38341.0,38320.0,0.03102503]
[1610078286484,0.1569,38341.0,38339.0,3.6373]
[1610078286687,0.1569,38341.0,38340.0,0.13632608]
[1610078286886,0.1569,38341.0,38340.0,0.31436025]
[1610078287786,0.1569,38357.0,38340.0,0.31436025]
[1610078288187,0.1569,38357.0,38341.0,0.0307292]
[1610078288388,0.1569,38357.0,38341.0,0.03101568]
[1610078288787,0.1569,38357.0,38356.0,0.13632608]
[1610078289387,0.1569,38357.0,38356.0,0.1673419]
[1610078289788,0.1569,38357.0,38356.0,0.03101582]
[1610078290387,0.1569,38357.0,38345.0,0.11245]
[1610078290589,0.1569,38357.0,38356.0,0.03101402]
[1610078290786,0.29322608,38357.0,38356.0,0.03101402]
[1610078290987,0.29322608,38357.0,38352.0,0.13632608]
[1610078291188,0.29322608,38357.0,38356.0,0.03101026]
[1610078291389,0.29322608,38357.0,38353.0,0.03100815]
[1610078291588,0.29322608,38357.0,38356.0,0.0002864]
[1610078291789,0.29322608,38357.0,38356.0,0.03100839]
[1610078291987,0.29322608,38357.0,38353.0,0.03100886]
[1610078292187,0.29322608,38357.0,38356.0,0.03100857]
[1610078292387,0.29322608,38357.0,38354.0,0.03100805]
[1610078292786,0.29322608,38357.0,38353.0,0.03100821]
[1610078292986,0.29322608,38357.0,38355.0,0.03100839]
[1610078293188,0.29322608,38357.0,38354.0,0.03100845]
[1610078293588,0.13632608,38357.0,38356.0,0.03100858]
[1610078293787,0.13632608,38357.0,38355.0,0.03100849]
[1610078293990,0.13632608,38357.0,38356.0,0.03101062]
[1610078294590,0.13632608,38357.0,38346.0,0.03101115]
[1610078294788,0.13632608,38347.0,38337.0,0.12122]
[1610078295389,0.13632608,38347.0,38338.0,0.0310147]
[1610078296190,0.13632608,38347.0,38339.0,0.5512]
[1610078296391,0.13632608,38347.0,38338.0,0.0310147]
[1610078296591,0.13632608,38347.0,38341.0,4.1609]
[1610078297193,0.13632608,38347.0,38342.0,0.08970534]
[1610078298891,0.13632608,38343.0,38342.0,0.08970534]
[1610078299892,0.09426,38360.0,38342.0,0.05868983]
[1610078300093,0.3195,38367.0,38342.0,0.0897021]
[1610078300293,0.3195,38367.0,38356.0,3.254]
[1610078300494,0.01592336,38371.0,38356.0,3.254]
[1610078300694,0.01591528,38380.0,38356.0,3.254]
[1610078300895,0.01591528,38380.0,38379.0,0.13632608]
[1610078301095,0.13632608,38383.0,38379.0,0.13632608]
[1610078301496,0.13632608,38383.0,38379.0,0.16732659]
[1610078301695,0.13632608,38383.0,38380.0,0.03099916]
[1610078303096,0.2837,38387.0,38380.0,0.03099916]
[1610078303297,0.2837,38387.0,38375.0,0.16732286]
[1610078303498,0.2837,38387.0,38381.0,0.03099582]
[1610078303699,0.2837,38387.0,38377.0,0.13446]
[1610078304098,0.2837,38387.0,38382.0,0.03099481]